[Event "*** Titled Tuesday Blitz"]
[Site "Chess.com"]
[Date "2019.01.01"]
[Round "8"]
[White "mersad_98"]
[Black "LawrenceTrent"]
[Result "1-0"]
[WhiteElo "2642"]
[BlackElo "2533"]
[TimeControl "180+2"]
[EndTime "14:54:13 PST"]
[Termination "mersad_98 won by resignation"]

1. e4 {[%clk 0:03:01.9]} 1... g6 {[%clk 0:03:01.4]} 2. d4 {[%clk 0:03:02.5]}
2... Bg7 {[%clk 0:03:02.9]} 3. Nc3 {[%clk 0:03:04.4]} 3... a6 {[%clk 0:03:04.1]}
4. Nf3 {[%clk 0:03:06.1]} 4... b5 {[%clk 0:03:05.3]} 5. a4 {[%clk 0:03:06.4]}
5... b4 {[%clk 0:03:06.3]} 6. Nd5 {[%clk 0:03:08]} 6... Bb7 {[%clk 0:03:06.3]}
7. Bd3 {[%clk 0:03:07.7]} 7... Nf6 {[%clk 0:03:05.2]} 8. Nxf6+ {[%clk
0:03:08.1]} 8... exf6 {[%clk 0:03:06.4]} 9. a5 {[%clk 0:03:04.4]} 9... O-O
{[%clk 0:03:06.7]} 10. Bd2 {[%clk 0:03:04.8]} 10... Re8 {[%clk 0:03:07.5]} 11.
O-O {[%clk 0:02:52.4]} 11... Bxe4 {[%clk 0:03:08]} 12. Bxe4 {[%clk 0:02:54]}
12... Rxe4 {[%clk 0:03:09.3]} 13. Bxb4 {[%clk 0:02:55.7]} 13... f5 {[%clk
0:03:06.6]} 14. Bc3 {[%clk 0:02:55.9]} 14... d6 {[%clk 0:02:56.9]} 15. Qd3
{[%clk 0:02:53.5]} 15... Nd7 {[%clk 0:02:46.8]} 16. Rfe1 {[%clk 0:02:51.5]}
16... d5 {[%clk 0:02:46.8]} 17. Nd2 {[%clk 0:02:47.7]} 17... Re7 {[%clk
0:02:20.8]} 18. Bb4 {[%clk 0:02:36.9]} 18... Rxe1+ {[%clk 0:02:20.4]} 19. Rxe1
{[%clk 0:02:38.8]} 19... Bf6 {[%clk 0:02:13.7]} 20. c3 {[%clk 0:02:38.3]} 20...
Qb8 {[%clk 0:02:12.3]} 21. Qg3 {[%clk 0:01:52.9]} 21... Qb7 {[%clk 0:02:07.1]}
22. Nb3 {[%clk 0:01:50.6]} 22... Qc6 {[%clk 0:02:05.6]} 23. h3 {[%clk
0:01:46.2]} 23... Rb8 {[%clk 0:01:32.6]} 24. Qf4 {[%clk 0:01:37.8]} 24... Kg7
{[%clk 0:01:32.2]} 25. g3 {[%clk 0:01:29]} 25... h6 {[%clk 0:01:31]} 26. h4
{[%clk 0:01:30.2]} 26... h5 {[%clk 0:01:31.9]} 27. Kg2 {[%clk 0:01:27.6]} 27...
Qa4 {[%clk 0:01:24.9]} 28. Qxc7 {[%clk 0:01:17.5]} 28... Qxb3 {[%clk 0:01:20.2]}
29. Qxd7 {[%clk 0:01:18.6]} 29... Qc4 {[%clk 0:01:10]} 30. Be7 {[%clk
0:01:11.8]} 30... Rxb2 {[%clk 0:00:47.4]} 31. Bxf6+ {[%clk 0:01:11.7]} 31...
Kxf6 {[%clk 0:00:48.6]} 32. Re7 {[%clk 0:01:05.6]} 1-0

[Event "*** Titled Tuesday Blitz"]
[Site "Chess.com"]
[Date "2019.01.01"]
[Round "8"]
[White "ramses135"]
[Black "jk13"]
[Result "1-0"]
[WhiteElo "2501"]
[BlackElo "2687"]
[TimeControl "180+2"]
[EndTime "14:54:15 PST"]
[Termination "ramses135 won by checkmate"]

1. e4 {[%clk 0:03:01.9]} 1... e5 {[%clk 0:03:00.7]} 2. Nf3 {[%clk 0:03:01.7]}
2... Nc6 {[%clk 0:03:02.3]} 3. Bb5 {[%clk 0:03:01.7]} 3... a6 {[%clk 0:03:03.7]}
4. Bxc6 {[%clk 0:03:02.3]} 4... dxc6 {[%clk 0:03:04.5]} 5. O-O {[%clk
0:03:04.2]} 5... f6 {[%clk 0:03:03.3]} 6. d4 {[%clk 0:03:02.6]} 6... Bg4 {[%clk
0:03:04.9]} 7. c3 {[%clk 0:03:00.9]} 7... Qe7 {[%clk 0:03:04.7]} 8. Be3 {[%clk
0:02:52.2]} 8... O-O-O {[%clk 0:03:04.7]} 9. Nbd2 {[%clk 0:02:53.2]} 9... Qe8
{[%clk 0:03:04.5]} 10. b4 {[%clk 0:02:41]} 10... Bd6 {[%clk 0:02:56.1]} 11. a4
{[%clk 0:02:41.8]} 11... exd4 {[%clk 0:02:37.7]} 12. Bxd4 {[%clk 0:02:33]} 12...
Bxb4 {[%clk 0:02:29.9]} 13. Rb1 {[%clk 0:02:12.6]} 13... Ba5 {[%clk 0:01:59.1]}
14. Nc4 {[%clk 0:01:50.7]} 14... Qh5 {[%clk 0:01:44.6]} 15. Qb3 {[%clk 0:01:10]}
15... Bxf3 {[%clk 0:00:32.5]} 16. Qxb7+ {[%clk 0:01:10.4]} 16... Kd7 {[%clk
0:00:33.3]} 17. Nxa5 {[%clk 0:01:11.1]} 17... Bxe4 {[%clk 0:00:20.9]} 18. Bb6
{[%clk 0:00:59.8]} 18... Ke8 {[%clk 0:00:13.6]} 19. Qxc7 {[%clk 0:00:40.8]}
19... Rd3 {[%clk 0:00:15.2]} 20. Rfe1 {[%clk 0:00:38.3]} 20... Ne7 {[%clk
0:00:12.6]} 21. Rxe4 {[%clk 0:00:34.6]} 21... Rd1+ {[%clk 0:00:13.8]} 22. Re1
{[%clk 0:00:35.6]} 22... Rxb1 {[%clk 0:00:15.5]} 23. Qxe7# {[%clk 0:00:35.4]}
1-0

[Event "*** Titled Tuesday Blitz"]
[Site "Chess.com"]
[Date "2019.01.01"]
[Round "8"]
[White "maziarbagheri"]
[Black "swisspower96"]
[Result "0-1"]
[WhiteElo "2366"]
[BlackElo "2536"]
[TimeControl "180+2"]
[EndTime "14:54:25 PST"]
[Termination "swisspower96 won by resignation"]

1. d4 {[%clk 0:03:01.9]} 1... f5 {[%clk 0:02:59.4]} 2. g4 {[%clk 0:02:49.5]}
2... fxg4 {[%clk 0:02:58.1]} 3. e4 {[%clk 0:02:49.8]} 3... d5 {[%clk 0:02:53.4]}
4. e5 {[%clk 0:02:50.5]} 4... Bf5 {[%clk 0:02:54.2]} 5. Be2 {[%clk 0:02:44.9]}
5... Qd7 {[%clk 0:02:52.3]} 6. Nc3 {[%clk 0:02:38.3]} 6... Nc6 {[%clk
0:02:42.1]} 7. Be3 {[%clk 0:02:39.2]} 7... h5 {[%clk 0:02:38.5]} 8. Qd2 {[%clk
0:02:35.4]} 8... g6 {[%clk 0:02:34.5]} 9. O-O-O {[%clk 0:02:27.8]} 9... Nb4
{[%clk 0:02:34.9]} 10. Bd3 {[%clk 0:02:28.1]} 10... Nxd3+ {[%clk 0:02:35.4]} 11.
cxd3 {[%clk 0:02:30]} 11... e6 {[%clk 0:02:36.3]} 12. Nge2 {[%clk 0:02:29.8]}
12... Bh6 {[%clk 0:02:32.8]} 13. Kb1 {[%clk 0:02:28.2]} 13... O-O-O {[%clk
0:02:33.5]} 14. Nc1 {[%clk 0:02:28.6]} 14... Kb8 {[%clk 0:02:29.2]} 15. Nb3
{[%clk 0:02:29.7]} 15... b6 {[%clk 0:02:30.4]} 16. Rc1 {[%clk 0:02:29.3]} 16...
Bxe3 {[%clk 0:02:25.1]} 17. fxe3 {[%clk 0:02:29.5]} 17... g5 {[%clk 0:02:22.5]}
18. e4 {[%clk 0:02:29.3]} 18... dxe4 {[%clk 0:02:21.2]} 19. dxe4 {[%clk
0:02:31.2]} 19... Bh7 {[%clk 0:02:20.4]} 20. Qxg5 {[%clk 0:02:31.7]} 20... Ne7
{[%clk 0:02:21.7]} 21. Rhd1 {[%clk 0:02:30.8]} 21... Nd5 {[%clk 0:02:16.9]} 22.
Nd2 {[%clk 0:01:36.2]} 22... Rdg8 {[%clk 0:02:09.9]} 23. Qh4 {[%clk 0:01:32.5]}
23... Ne3 {[%clk 0:02:07.8]} 24. Nb3 {[%clk 0:01:19.1]} 24... Nxd1 {[%clk
0:02:02.6]} 25. Rxd1 {[%clk 0:01:21]} 25... Rf8 {[%clk 0:02:03.5]} 26. Ka1
{[%clk 0:01:21.5]} 26... Rf4 {[%clk 0:01:57.7]} 27. d5 {[%clk 0:01:20.9]} 27...
Rhf8 {[%clk 0:01:57]} 28. d6 {[%clk 0:01:13.3]} 28... Bxe4 {[%clk 0:01:52.5]}
29. Qe7 {[%clk 0:00:55.2]} 29... Bc6 {[%clk 0:01:44.4]} 30. a4 {[%clk
0:00:37.1]} 30... Qxe7 {[%clk 0:01:40.3]} 31. dxe7 {[%clk 0:00:34.6]} 31... Re8
{[%clk 0:01:41.7]} 32. Rd8+ {[%clk 0:00:34.4]} 32... Kb7 {[%clk 0:01:43.1]} 33.
Rxe8 {[%clk 0:00:30.6]} 33... Bxe8 {[%clk 0:01:45]} 34. a5 {[%clk 0:00:31.4]}
34... Rf7 {[%clk 0:01:45.2]} 35. Nd4 {[%clk 0:00:30.2]} 35... Rxe7 {[%clk
0:01:46.1]} 36. b4 {[%clk 0:00:31.7]} 36... Bd7 {[%clk 0:01:43.3]} 37. b5 {[%clk
0:00:32.5]} 37... Rf7 {[%clk 0:01:42.9]} 38. a6+ {[%clk 0:00:33.1]} 38... Kc8
{[%clk 0:01:43.1]} 39. Ne4 {[%clk 0:00:33.9]} 39... Rf4 {[%clk 0:01:43.7]} 0-1

[Event "*** Titled Tuesday Blitz"]
[Site "Chess.com"]
[Date "2019.01.01"]
[Round "8"]
[White "evgenyermolaev"]
[Black "MissingLife"]
[Result "1-0"]
[WhiteElo "2489"]
[BlackElo "2413"]
[TimeControl "180+2"]
[EndTime "14:54:27 PST"]
[Termination "evgenyermolaev won by resignation"]

1. e4 {[%clk 0:03:01.7]} 1... e6 {[%clk 0:02:43.5]} 2. d4 {[%clk 0:02:59.9]}
2... d5 {[%clk 0:02:45.4]} 3. Nc3 {[%clk 0:03:00.6]} 3... Bb4 {[%clk 0:02:46.3]}
4. Bd2 {[%clk 0:03:00.2]} 4... Ne7 {[%clk 0:02:46.7]} 5. a3 {[%clk 0:03:00.4]}
5... Ba5 {[%clk 0:02:47.8]} 6. b4 {[%clk 0:02:56.1]} 6... Bb6 {[%clk 0:02:48.7]}
7. Nf3 {[%clk 0:02:57.8]} 7... Nbc6 {[%clk 0:02:49.8]} 8. Bb5 {[%clk 0:02:43.3]}
8... O-O {[%clk 0:02:44.6]} 9. Bxc6 {[%clk 0:02:09.4]} 9... Nxc6 {[%clk
0:02:30.2]} 10. Be3 {[%clk 0:02:10]} 10... dxe4 {[%clk 0:02:29.4]} 11. Nxe4
{[%clk 0:02:09.2]} 11... e5 {[%clk 0:02:22.9]} 12. d5 {[%clk 0:01:57.3]} 12...
Bxe3 {[%clk 0:02:24.8]} 13. dxc6 {[%clk 0:01:57.8]} 13... Bb6 {[%clk 0:02:19.6]}
14. O-O {[%clk 0:01:32.9]} 14... bxc6 {[%clk 0:02:15.3]} 15. Qe2 {[%clk
0:01:05.8]} 15... Qe7 {[%clk 0:02:09.4]} 16. Rad1 {[%clk 0:01:02.6]} 16... a5
{[%clk 0:02:07.2]} 17. c4 {[%clk 0:01:03.9]} 17... axb4 {[%clk 0:02:06.6]} 18.
axb4 {[%clk 0:01:05.6]} 18... Ba6 {[%clk 0:01:51.3]} 19. Qc2 {[%clk 0:00:36.9]}
19... Qxb4 {[%clk 0:01:47]} 20. Nxe5 {[%clk 0:00:36.5]} 20... f6 {[%clk
0:01:34.2]} 21. Nxc6 {[%clk 0:00:13]} 21... Qxc4 {[%clk 0:01:34.3]} 22. Qxc4+
{[%clk 0:00:14.1]} 22... Bxc4 {[%clk 0:01:36.2]} 23. Rfe1 {[%clk 0:00:16]} 23...
Ra2 {[%clk 0:01:37.3]} 24. Nb4 {[%clk 0:00:13.1]} 24... Ra4 {[%clk 0:01:33.1]}
25. Nd5 {[%clk 0:00:13.8]} 25... Bxd5 {[%clk 0:01:33.8]} 26. Rxd5 {[%clk
0:00:15.7]} 26... Re8 {[%clk 0:01:33.8]} 27. Nxf6+ {[%clk 0:00:16.9]} 27... Kf7
{[%clk 0:01:34.6]} 28. Nxe8 {[%clk 0:00:17.3]} 28... Rf4 {[%clk 0:01:22.1]} 29.
Re2 {[%clk 0:00:14.7]} 29... Rc4 {[%clk 0:01:18.5]} 30. g3 {[%clk 0:00:15.4]}
30... Rc1+ {[%clk 0:01:15.9]} 31. Kg2 {[%clk 0:00:16.4]} 31... Rc6 {[%clk
0:01:17.5]} 32. Rd7+ {[%clk 0:00:17.7]} 1-0

[Event "*** Titled Tuesday Blitz"]
[Site "Chess.com"]
[Date "2019.01.01"]
[Round "8"]
[White "PenguinPacks"]
[Black "tteshan"]
[Result "0-1"]
[WhiteElo "2219"]
[BlackElo "2161"]
[TimeControl "180+2"]
[EndTime "14:54:30 PST"]
[Termination "tteshan won by resignation"]

1. Nf3 {[%clk 0:03:01.9]} 1... c5 {[%clk 0:02:56.8]} 2. g3 {[%clk 0:03:01.1]}
2... g6 {[%clk 0:02:57.3]} 3. Bg2 {[%clk 0:03:02.7]} 3... Bg7 {[%clk 0:02:58.5]}
4. O-O {[%clk 0:02:57.8]} 4... Nc6 {[%clk 0:02:59.7]} 5. c3 {[%clk 0:02:56]}
5... Nf6 {[%clk 0:03:00.6]} 6. d4 {[%clk 0:02:54.2]} 6... cxd4 {[%clk
0:03:00.8]} 7. cxd4 {[%clk 0:02:56.1]} 7... O-O {[%clk 0:03:00.8]} 8. d5 {[%clk
0:02:56.6]} 8... Nb8 {[%clk 0:03:01.4]} 9. Nc3 {[%clk 0:02:57.8]} 9... d6 {[%clk
0:03:01.8]} 10. e4 {[%clk 0:02:58.8]} 10... Nbd7 {[%clk 0:03:01.1]} 11. h3
{[%clk 0:02:57.5]} 11... Nc5 {[%clk 0:03:01.1]} 12. Nd2 {[%clk 0:02:57]} 12...
Bd7 {[%clk 0:02:57.4]} 13. a4 {[%clk 0:02:52.1]} 13... Qc8 {[%clk 0:02:56.9]}
14. Qe2 {[%clk 0:02:51.8]} 14... Bxh3 {[%clk 0:02:54.8]} 15. Nc4 {[%clk
0:02:44.9]} 15... Bxg2 {[%clk 0:02:53]} 16. Kxg2 {[%clk 0:02:46.8]} 16... Nfd7
{[%clk 0:02:45.5]} 17. Ra3 {[%clk 0:02:41.8]} 17... Ne5 {[%clk 0:02:44.2]} 18.
Ne3 {[%clk 0:02:40.4]} 18... h5 {[%clk 0:02:24.5]} 19. Bd2 {[%clk 0:02:22.5]}
19... Ng4 {[%clk 0:02:06.8]} 20. f3 {[%clk 0:02:16.3]} 20... Nxe3+ {[%clk
0:02:02.3]} 21. Bxe3 {[%clk 0:02:18.2]} 21... b6 {[%clk 0:01:57.2]} 22. Rc1
{[%clk 0:02:18.9]} 22... Qd7 {[%clk 0:01:49.6]} 23. Nb5 {[%clk 0:02:19.8]} 23...
a6 {[%clk 0:01:48.5]} 24. Nd4 {[%clk 0:02:20.9]} 24... Nxa4 {[%clk 0:01:42.9]}
25. Nc6 {[%clk 0:02:20.2]} 25... b5 {[%clk 0:01:38]} 26. Rh1 {[%clk 0:02:19.9]}
26... Nxb2 {[%clk 0:01:36.1]} 27. Rb3 {[%clk 0:02:05.5]} 27... Nc4 {[%clk
0:01:32.4]} 28. Bc1 {[%clk 0:02:06.6]} 28... Qc7 {[%clk 0:01:28.7]} 29. g4
{[%clk 0:02:06.5]} 29... hxg4 {[%clk 0:01:25]} 30. fxg4 {[%clk 0:02:08.4]} 30...
Na5 {[%clk 0:01:24.6]} 31. Rbh3 {[%clk 0:02:08.2]} 31... Nxc6 {[%clk 0:01:21.4]}
32. Qd2 {[%clk 0:01:59.8]} 32... Ne5 {[%clk 0:01:05.2]} 33. Rh8+ {[%clk
0:01:53.3]} 33... Bxh8 {[%clk 0:01:04.2]} 34. Qh6 {[%clk 0:01:54.6]} 34... Qc2+
{[%clk 0:01:04.1]} 35. Bd2 {[%clk 0:01:55.9]} 35... Qxe4+ {[%clk 0:01:04.2]} 36.
Kf1 {[%clk 0:01:49.2]} 36... Qf3+ {[%clk 0:01:00.9]} 37. Kg1 {[%clk 0:01:50.4]}
37... Qxg4+ {[%clk 0:00:57.4]} 38. Kf1 {[%clk 0:01:51]} 38... Qd1+ {[%clk
0:00:49.9]} 39. Kf2 {[%clk 0:01:50.1]} 39... Qf3+ {[%clk 0:00:46.1]} 40. Kg1
{[%clk 0:01:49.7]} 40... Qg3+ {[%clk 0:00:42.5]} 41. Kf1 {[%clk 0:01:51.1]}
41... Qd3+ {[%clk 0:00:42.9]} 42. Kg2 {[%clk 0:01:47]} 42... Qe2+ {[%clk
0:00:43]} 43. Kg3 {[%clk 0:01:44.1]} 43... Qf3+ {[%clk 0:00:43.8]} 44. Kh2
{[%clk 0:01:44.8]} 44... Qh5+ {[%clk 0:00:42.6]} 45. Qxh5 {[%clk 0:01:45.2]}
45... gxh5 {[%clk 0:00:43.6]} 46. Rg1+ {[%clk 0:01:46.9]} 46... Ng4+ {[%clk
0:00:44]} 0-1

[Event "*** Titled Tuesday Blitz"]
[Site "Chess.com"]
[Date "2019.01.01"]
[Round "8"]
[White "Arman_Hakemi"]
[Black "JoakimVonAnd"]
[Result "1-0"]
[WhiteElo "2476"]
[BlackElo "2349"]
[TimeControl "180+2"]
[EndTime "14:54:41 PST"]
[Termination "Arman_Hakemi won by resignation"]

1. e4 {[%clk 0:03:01.9]} 1... c6 {[%clk 0:03:00.3]} 2. d4 {[%clk 0:03:02.8]}
2... d5 {[%clk 0:03:02.2]} 3. e5 {[%clk 0:03:03.4]} 3... Bf5 {[%clk 0:03:01.3]}
4. h4 {[%clk 0:03:04.3]} 4... h5 {[%clk 0:03:02]} 5. Bd3 {[%clk 0:03:05.3]} 5...
Bxd3 {[%clk 0:03:03.3]} 6. Qxd3 {[%clk 0:03:07]} 6... Qa5+ {[%clk 0:03:04.6]} 7.
Nd2 {[%clk 0:03:05]} 7... Qa6 {[%clk 0:03:05.8]} 8. e6 {[%clk 0:02:57.9]} 8...
Qxd3 {[%clk 0:03:04.8]} 9. exf7+ {[%clk 0:02:59.1]} 9... Kxf7 {[%clk 0:03:06.5]}
10. cxd3 {[%clk 0:03:00.6]} 10... Nd7 {[%clk 0:03:07.5]} 11. Ngf3 {[%clk
0:03:02.1]} 11... Ngf6 {[%clk 0:03:08.4]} 12. O-O {[%clk 0:03:03.1]} 12... e6
{[%clk 0:03:09.2]} 13. Ng5+ {[%clk 0:02:54.7]} 13... Kg6 {[%clk 0:02:57.6]} 14.
Nxe6 {[%clk 0:02:55.5]} 14... Bd6 {[%clk 0:02:58.7]} 15. Nf3 {[%clk 0:02:53.6]}
15... Rae8 {[%clk 0:02:58.3]} 16. Nf4+ {[%clk 0:02:49.3]} 16... Bxf4 {[%clk
0:02:59.4]} 17. Bxf4 {[%clk 0:02:49.9]} 17... Re2 {[%clk 0:03:00.5]} 18. b4
{[%clk 0:02:43]} 18... Ng4 {[%clk 0:02:55.3]} 19. a4 {[%clk 0:02:34.7]} 19... a6
{[%clk 0:02:51.7]} 20. b5 {[%clk 0:02:35.4]} 20... Rf8 {[%clk 0:02:44.2]} 21.
Bg3 {[%clk 0:02:33.3]} 21... cxb5 {[%clk 0:02:21.5]} 22. axb5 {[%clk 0:02:32.8]}
22... Ra8 {[%clk 0:02:23.1]} 23. Rfc1 {[%clk 0:02:29.5]} 23... a5 {[%clk
0:02:22.2]} 24. Rc7 {[%clk 0:02:29.3]} 24... Ndf6 {[%clk 0:02:22.2]} 25. Rxb7
{[%clk 0:02:27.1]} 25... a4 {[%clk 0:02:23.3]} 26. Rb6 {[%clk 0:02:28.1]} 26...
Rb2 {[%clk 0:02:17.1]} 27. Ne5+ {[%clk 0:02:26.6]} 27... Kh6 {[%clk 0:02:16.3]}
28. Nxg4+ {[%clk 0:02:10.5]} 28... hxg4 {[%clk 0:02:18.2]} 29. Ra6 {[%clk
0:02:10.3]} 29... Re8 {[%clk 0:02:10.7]} 30. b6 {[%clk 0:02:07]} 30... Re6
{[%clk 0:02:08.3]} 31. R1xa4 {[%clk 0:01:51.7]} 31... Rexb6 {[%clk 0:02:05.6]}
32. Rxb6 {[%clk 0:01:52.1]} 32... Rxb6 {[%clk 0:02:07.5]} 33. Be5 {[%clk
0:01:48.5]} 33... Kh5 {[%clk 0:01:37.4]} 34. Ra5 {[%clk 0:01:46.2]} 34... Rb1+
{[%clk 0:01:27.2]} 35. Kh2 {[%clk 0:01:46.8]} 35... Kxh4 {[%clk 0:01:25.3]} 36.
Bxf6+ {[%clk 0:01:43.8]} 36... gxf6 {[%clk 0:01:26.3]} 37. g3+ {[%clk
0:01:33.6]} 37... Kg5 {[%clk 0:01:26.8]} 38. Rxd5+ {[%clk 0:01:34.5]} 38... f5
{[%clk 0:01:28.3]} 39. Kg2 {[%clk 0:01:30.8]} 39... Rd1 {[%clk 0:01:29.1]} 40.
Rd6 {[%clk 0:01:30.1]} 40... Rxd3 {[%clk 0:01:29.6]} 41. Kf1 {[%clk 0:01:31.4]}
41... Rd2 {[%clk 0:01:29.4]} 42. d5 {[%clk 0:01:31.1]} 42... Ra2 {[%clk
0:01:29.7]} 43. Rd8 {[%clk 0:01:30.4]} 43... Ra1+ {[%clk 0:01:31.1]} 44. Ke2
{[%clk 0:01:31.3]} 44... Ra2+ {[%clk 0:01:31.9]} 45. Ke3 {[%clk 0:01:32.8]}
45... Ra3+ {[%clk 0:01:33.2]} 46. Kd4 {[%clk 0:01:34.1]} 46... Ra2 {[%clk
0:01:34]} 47. d6 {[%clk 0:01:34.8]} 47... Rxf2 {[%clk 0:01:34.5]} 48. d7 {[%clk
0:01:34.6]} 48... Rd2+ {[%clk 0:01:35.6]} 49. Ke5 {[%clk 0:01:35.3]} 49... Re2+
{[%clk 0:01:34.7]} 50. Kd6 {[%clk 0:01:35.8]} 50... Rd2+ {[%clk 0:01:33.3]} 51.
Ke7 {[%clk 0:01:35.1]} 51... f4 {[%clk 0:01:25.9]} 52. Rg8+ {[%clk 0:01:34.9]}
52... Kh5 {[%clk 0:01:20.7]} 53. gxf4 {[%clk 0:01:34.9]} 53... Kh4 {[%clk
0:01:20.1]} 54. f5 {[%clk 0:01:35.9]} 54... g3 {[%clk 0:01:21.1]} 55. f6 {[%clk
0:01:37.3]} 55... Kh3 {[%clk 0:01:21]} 56. f7 {[%clk 0:01:38.3]} 56... g2 {[%clk
0:01:22.4]} 1-0

[Event "*** Titled Tuesday Blitz"]
[Site "Chess.com"]
[Date "2019.01.01"]
[Round "8"]
[White "Karina_Oparina"]
[Black "Fivetrick"]
[Result "0-1"]
[WhiteElo "2057"]
[BlackElo "2615"]
[TimeControl "180+2"]
[EndTime "14:54:49 PST"]
[Termination "Fivetrick won by resignation"]

1. Nf3 {[%clk 0:03:00.7]} 1... Nf6 {[%clk 0:03:00]} 2. g3 {[%clk 0:03:00.5]}
2... g6 {[%clk 0:03:01.2]} 3. Bg2 {[%clk 0:03:01.4]} 3... Bg7 {[%clk 0:03:02.6]}
4. O-O {[%clk 0:03:02]} 4... O-O {[%clk 0:03:04.3]} 5. c4 {[%clk 0:03:02.4]}
5... Nc6 {[%clk 0:03:03.1]} 6. d4 {[%clk 0:03:02.6]} 6... d6 {[%clk 0:03:03.6]}
7. Nc3 {[%clk 0:03:02.9]} 7... a6 {[%clk 0:03:01.6]} 8. Qd3 {[%clk 0:02:56.3]}
8... Rb8 {[%clk 0:02:59.8]} 9. e4 {[%clk 0:02:50.2]} 9... Bg4 {[%clk 0:02:59.8]}
10. Be3 {[%clk 0:02:45.9]} 10... Nd7 {[%clk 0:02:21.1]} 11. Rfe1 {[%clk
0:02:31.5]} 11... Bxf3 {[%clk 0:02:11]} 12. Bxf3 {[%clk 0:02:31.6]} 12... e5
{[%clk 0:02:12.5]} 13. d5 {[%clk 0:02:32.5]} 13... Nd4 {[%clk 0:02:13.9]} 14.
Bg2 {[%clk 0:02:33]} 14... f5 {[%clk 0:02:13.2]} 15. f4 {[%clk 0:02:27.2]} 15...
c5 {[%clk 0:01:30]} 16. Rad1 {[%clk 0:02:10.5]} 16... Kh8 {[%clk 0:00:58.8]} 17.
exf5 {[%clk 0:02:03.3]} 17... gxf5 {[%clk 0:00:57.7]} 18. b3 {[%clk 0:01:55.2]}
18... Qa5 {[%clk 0:00:42.5]} 19. Rd2 {[%clk 0:01:47.8]} 19... e4 {[%clk
0:00:40.4]} 20. Bxd4 {[%clk 0:01:38.9]} 20... Bxd4+ {[%clk 0:00:39.8]} 21. Qe3
{[%clk 0:01:35.7]} 21... Bxe3+ {[%clk 0:00:30.2]} 22. Rxe3 {[%clk 0:01:36.2]}
22... Nf6 {[%clk 0:00:21.5]} 23. Bh3 {[%clk 0:01:35.8]} 23... Nh5 {[%clk
0:00:16.5]} 24. Kf2 {[%clk 0:01:26.3]} 24... b5 {[%clk 0:00:17.1]} 25. Bf1
{[%clk 0:01:24.6]} 25... Nf6 {[%clk 0:00:15.5]} 26. Be2 {[%clk 0:01:25.1]} 26...
bxc4 {[%clk 0:00:15.5]} 27. bxc4 {[%clk 0:01:23.9]} 27... Rb4 {[%clk 0:00:14.5]}
28. h3 {[%clk 0:01:21.9]} 28... Rfb8 {[%clk 0:00:14]} 29. g4 {[%clk 0:01:20.5]}
29... fxg4 {[%clk 0:00:11.4]} 30. hxg4 {[%clk 0:01:21.3]} 30... Rb2 {[%clk
0:00:12]} 31. Rxb2 {[%clk 0:01:11.8]} 31... Rxb2 {[%clk 0:00:12.2]} 32. Kg3
{[%clk 0:01:12.2]} 32... Rxe2 {[%clk 0:00:08.8]} 33. Nxe2 {[%clk 0:01:11.2]}
33... Qd2 {[%clk 0:00:09]} 34. Kf2 {[%clk 0:01:11.3]} 34... Nxg4+ {[%clk
0:00:09.2]} 0-1

[Event "*** Titled Tuesday Blitz"]
[Site "Chess.com"]
[Date "2019.01.01"]
[Round "8"]
[White "Gubajdullin"]
[Black "andresgv36"]
[Result "0-1"]
[WhiteElo "2388"]
[BlackElo "2364"]
[TimeControl "180+2"]
[EndTime "14:54:56 PST"]
[Termination "andresgv36 won by checkmate"]

1. d4 {[%clk 0:03:01.9]} 1... Nf6 {[%clk 0:02:58.3]} 2. Bf4 {[%clk 0:03:02.9]}
2... g6 {[%clk 0:02:55.6]} 3. e3 {[%clk 0:03:04]} 3... Bg7 {[%clk 0:02:56.5]} 4.
Nf3 {[%clk 0:03:05.1]} 4... d6 {[%clk 0:02:57.7]} 5. Be2 {[%clk 0:03:06.7]} 5...
O-O {[%clk 0:02:57.3]} 6. O-O {[%clk 0:03:08.2]} 6... Nh5 {[%clk 0:02:52.6]} 7.
Bg5 {[%clk 0:03:06.9]} 7... h6 {[%clk 0:02:53.7]} 8. Bh4 {[%clk 0:03:07.9]} 8...
g5 {[%clk 0:02:53.4]} 9. Nfd2 {[%clk 0:03:08.8]} 9... gxh4 {[%clk 0:02:54.4]}
10. Bxh5 {[%clk 0:03:09]} 10... c5 {[%clk 0:02:56.2]} 11. c3 {[%clk 0:03:06.2]}
11... cxd4 {[%clk 0:02:50.9]} 12. exd4 {[%clk 0:03:06.1]} 12... Nc6 {[%clk
0:02:50.3]} 13. d5 {[%clk 0:03:03.2]} 13... Ne5 {[%clk 0:02:49]} 14. Nf3 {[%clk
0:03:02.6]} 14... h3 {[%clk 0:02:48.9]} 15. g3 {[%clk 0:03:00.4]} 15... Qb6
{[%clk 0:02:40.8]} 16. Nxe5 {[%clk 0:02:59.5]} 16... dxe5 {[%clk 0:02:36]} 17.
Qb3 {[%clk 0:02:52.3]} 17... e6 {[%clk 0:02:22.8]} 18. Qxb6 {[%clk 0:02:46.1]}
18... axb6 {[%clk 0:02:24]} 19. Bf3 {[%clk 0:02:46.9]} 19... f5 {[%clk
0:02:19.7]} 20. Rd1 {[%clk 0:02:42]} 20... e4 {[%clk 0:02:20.1]} 21. Be2 {[%clk
0:02:40.6]} 21... Rd8 {[%clk 0:01:57.5]} 22. dxe6 {[%clk 0:02:35.1]} 22... Bxe6
{[%clk 0:01:57.9]} 23. Na3 {[%clk 0:02:35.4]} 23... Rxd1+ {[%clk 0:01:43.2]} 24.
Bxd1 {[%clk 0:02:35.3]} 24... Bxc3 {[%clk 0:01:30.6]} 25. Nc4 {[%clk 0:02:19.8]}
25... Bxc4 {[%clk 0:01:21.8]} 26. bxc3 {[%clk 0:02:20.5]} 26... Rxa2 {[%clk
0:01:20.7]} 27. Rxa2 {[%clk 0:02:17.6]} 27... Bxa2 {[%clk 0:01:21.7]} 28. Kf1
{[%clk 0:02:18.7]} 28... Bc4+ {[%clk 0:01:14.9]} 29. Ke1 {[%clk 0:02:19.3]}
29... Kf7 {[%clk 0:01:16]} 30. Kd2 {[%clk 0:02:20]} 30... Ke6 {[%clk 0:01:13.1]}
31. Ke3 {[%clk 0:02:20.8]} 31... Ke5 {[%clk 0:01:14.4]} 32. Bh5 {[%clk
0:02:21.4]} 32... Be6 {[%clk 0:01:07.3]} 33. Be8 {[%clk 0:02:21.6]} 33... Kd5
{[%clk 0:01:05.7]} 34. Bb5 {[%clk 0:02:22.1]} 34... Kc5 {[%clk 0:01:04.5]} 35.
Be2 {[%clk 0:02:20]} 35... b5 {[%clk 0:01:04.6]} 36. Kf4 {[%clk 0:02:15.3]}
36... b4 {[%clk 0:01:05.2]} 37. cxb4+ {[%clk 0:02:15.8]} 37... Kxb4 {[%clk
0:01:06.9]} 38. Ke5 {[%clk 0:02:16.9]} 38... Bc8 {[%clk 0:01:06.6]} 39. Bf1
{[%clk 0:02:00]} 39... Kc3 {[%clk 0:01:04.6]} 40. Kf6 {[%clk 0:01:57.2]} 40...
Kd2 {[%clk 0:00:59.6]} 41. Bxh3 {[%clk 0:01:53]} 41... b5 {[%clk 0:00:53.6]} 42.
Bf1 {[%clk 0:01:50.5]} 42... b4 {[%clk 0:00:53.2]} 43. Bc4 {[%clk 0:01:51.3]}
43... Ke1 {[%clk 0:00:52.9]} 44. Kg6 {[%clk 0:01:50.5]} 44... Kxf2 {[%clk
0:00:53.4]} 45. Kxh6 {[%clk 0:01:51.6]} 45... e3 {[%clk 0:00:55]} 46. h3 {[%clk
0:01:51.6]} 46... e2 {[%clk 0:00:55]} 47. Bxe2 {[%clk 0:01:51.2]} 47... Kxe2
{[%clk 0:00:56.9]} 48. h4 {[%clk 0:01:52.1]} 48... b3 {[%clk 0:00:57.1]} 49. h5
{[%clk 0:01:53.3]} 49... b2 {[%clk 0:00:58.2]} 50. Kg7 {[%clk 0:01:54.4]} 50...
b1=Q {[%clk 0:00:58.9]} 51. h6 {[%clk 0:01:55.3]} 51... f4 {[%clk 0:01:00.4]}
52. gxf4 {[%clk 0:01:53.9]} 52... Bf5 {[%clk 0:01:01.3]} 53. Kf6 {[%clk
0:01:54.1]} 53... Kf3 {[%clk 0:01:00.8]} 54. Kg5 {[%clk 0:01:55.2]} 54... Qe4
{[%clk 0:00:57.6]} 55. Kh5 {[%clk 0:01:51.6]} 55... Qxf4 {[%clk 0:00:52.2]} 56.
h7 {[%clk 0:01:52.5]} 56... Qg4+ {[%clk 0:00:52.7]} 57. Kh6 {[%clk 0:01:53.2]}
57... Qg6# {[%clk 0:00:54]} 0-1